fUSD/lending_fUSD_20240317
["ID","MTS","AMOUNT","RATE_DAILY","PERIOD"]
[319374823,1710707549220,-2387.14,0.0001863,2]
[319374824,1710707549229,-500.0,0.0001863,2]
[319374825,1710707549238,-699.17095495,0.0001863,2]
[319374826,1710707549247,-813.64,0.0001863,2]
[319374827,1710707549256,-500.0,0.0001863,2]
[319374828,1710707549265,-2387.14,0.0001863,2]
[319374829,1710707549274,-500.0,0.0001863,2]
[319374830,1710707549284,-500.0,0.0001863,2]
[319374831,1710707549294,-813.64,0.0001863,2]
[319374832,1710707549307,-500.0,0.0001863,2]
[319374833,1710707549316,-2387.14,0.0001863,2]
[319374834,1710707549325,-500.0,0.0001863,2]
[319374835,1710707549335,-283.94446511,0.0001863,2]
[319374836,1710707549345,-500.0,0.0001863,2]
[319374837,1710707549354,-813.64,0.0001863,2]
[319374838,1710707549365,-500.0,0.0001863,2]
[319374839,1710707549375,-2387.14,0.0001863,2]
[319374840,1710707549386,-500.0,0.0001863,2]
[319374841,1710707549395,-500.0,0.0001863,2]
[319374842,1710707549406,-500.0,0.0001863,2]
[319374843,1710707549417,-813.64,0.0001863,2]
[319374844,1710707549426,-500.0,0.0001863,2]
[319374845,1710707549437,-2387.14,0.0001863,2]
[319374846,1710707549447,-500.0,0.0001863,2]
[319374847,1710707549457,-813.64,0.0001863,2]
[319374848,1710707549467,-500.0,0.0001863,2]
[319374849,1710707549477,-500.0,0.0001863,2]
[319374850,1710707549487,-2387.14,0.0001863,2]
[319374851,1710707549498,-500.0,0.0001863,2]
[319374852,1710707549508,-813.64,0.0001863,2]
[319374853,1710707549518,-500.0,0.0001863,2]
[319374854,1710707549528,-500.0,0.0001863,2]
[319374855,1710707549537,-2387.14,0.0001863,2]
[319374856,1710707549546,-500.0,0.0001863,2]
[319374857,1710707549556,-813.64,0.0001863,2]
[319374858,1710707549565,-500.0,0.0001863,2]
[319374859,1710707549577,-2387.14,0.0001863,2]
[319374860,1710707549587,-500.0,0.0001863,2]
[319374861,1710707549596,-813.64,0.0001863,2]
[319374862,1710707549606,-500.0,0.0001863,2]
[319374863,1710707549617,-831.97,0.0001863,2]
[319374864,1710707549626,-3662.75807059,0.00019956,2]
[319374865,1710707549635,-42878.0,0.00019956,2]
[319374866,1710707549644,-5668.0,0.00019956,2]
[319374867,1710707549654,-1378.0,0.00019956,2]
[319374868,1710707549663,-2428.0,0.00019956,2]
[319374869,1710707549674,-293.16,0.0001996,15]
[319374870,1710707549683,-292.0,0.0001997,15]
[319374871,1710707549692,-2000.0,0.00019973,2]
[319374872,1710707549701,-59161.91,0.00019974,2]
[319374873,1710707549711,-211.96323439,0.0001998,2]
[319374874,1710707549721,-8909.64939821,0.00019999,4]
[319374875,1710707549732,-864.59315853,0.0002,2]
[319374876,1710707549742,-155.0,0.0002,2]
[319374877,1710707549751,-577.51015398,0.0002,2]
[319374878,1710707549762,-6159.11607225,0.0002,2]
[319374879,1710707549773,-155.53392424,0.0002,2]
[319374880,1710707549783,-155.50695374,0.0002,2]
[319374881,1710707549792,-155.0,0.0002,2]
[319374882,1710707549801,-18820.84330743,0.0002,2]
[319374883,1710707549810,-155.18681793,0.0002,2]
[319374884,1710707549819,-155.20162325,0.0002,2]
[319374885,1710707549829,-4503.0,0.0002,3]
[319374886,1710707549837,-8966.32174211,0.0002,2]
[319374887,1710707549847,-2600.0,0.0002,2]
[319374888,1710707549855,-42620.0,0.0002,3]
[319374889,1710707549866,-1700.0,0.0002,2]
[319374890,1710707549875,-1152.27755656,0.0002,4]
[319374891,1710707549884,-10000.0,0.0002,2]
[319374892,1710707549894,-10000.0,0.0002,2]
[319374893,1710707549903,-10000.0,0.0002,2]
[319374894,1710707549912,-4021.564327,0.0002,2]
[319374895,1710707549922,-10000.0,0.0002,2]
[319374896,1710707549931,-10000.0,0.0002,2]
[319374897,1710707549941,-10000.0,0.0002,2]
[319374898,1710707549950,-12011.01449375,0.0002,2]
[319374899,1710707549961,-5354.34075588,0.0002,2]
[319374900,1710707549971,-2463.10245165,0.0002,2]
[319374901,1710707549981,-286.56799532,0.0002,2]
[319374902,1710707549990,-18379.2866197,0.0002,2]
[319374903,1710707549999,-1660.66242297,0.0002,2]
[319374904,1710707550009,-288.38574875,0.0002,2]
[319374905,1710707550018,-3702.83520221,0.0002,2]
[319374906,1710707550027,-6653.0,0.0002,2]
[319374907,1710707550036,-14443.5759048,0.0002,2]
[319374908,1710707550045,-2306.70235554,0.0002,2]
[319374909,1710707550054,-3950.0,0.0002,2]
[319374910,1710707550064,-761.42259087,0.0002,2]
[319374911,1710707550074,-159.39616271,0.0002,2]
[319374912,1710707550083,-2500.0,0.0002,2]
[319374913,1710707550092,-1401.11586915,0.0002,2]
[319374914,1710707550102,-1591.08319554,0.0002,2]
[319374915,1710707550112,-1386.0,0.0002,2]
[319374916,1710707550121,-459.00903375,0.0002,2]
[319374917,1710707550130,-19339.78541941,0.0002,2]
[319374918,1710707550139,-500.0,0.0002,2]
[319374919,1710707550148,-31989.03488025,0.0002,2]
[319374920,1710707550158,-951.40437151,0.0002,2]
[319374921,1710707550167,-500.0,0.0002,2]
[319374922,1710707550176,-1138.05275703,0.0002,2]
[319374923,1710707550185,-377.08483073,0.0002,2]
[319374924,1710707550194,-1000000.0,0.0002,2]
[319374925,1710707550203,-3000.0,0.0002,2]
[319374926,1710707550212,-5383.80207869,0.0002,2]
[319374927,1710707550221,-1000.0,0.0002,2]
[319374928,1710707550231,-1687.97,0.0002,2]
[319374929,1710707550241,-1696.74,0.0002,2]
[319374930,1710707550251,-10984.98,0.0002,2]
[319374931,1710707550262,-500.0,0.0002,5]
[319374932,1710707550272,-4703.58723779,0.0002,2]
[319374933,1710707550282,-500.58853054,0.0002,2]
[319374934,1710707550292,-6386.1321632,0.0002,2]
[319374935,1710707550302,-3868.41029547,0.0002,2]
[319374936,1710707550312,-732.953724,0.0002,2]
[319374937,1710707550322,-167.26410838,0.0002,2]
[319374938,1710707550333,-33002.68705688,0.0002,2]
[319374939,1710707550343,-38717.20157766,0.0002,2]
[319374940,1710707550352,-2000.0,0.0002,2]
[319374941,1710707550362,-2000.0,0.0002,2]
[319374942,1710707550371,-6167.0,0.0002,2]
[319374943,1710707550381,-2030.14249584,0.0002,2]
[319374944,1710707550390,-127562.60835163,0.0002,2]
[319374945,1710707550401,-150.0,0.0002,2]
[319374946,1710707550412,-13410.51415536,0.0002,2]
[319374947,1710707550422,-13402.99207659,0.0002,2]
[319374948,1710707550431,-10115.68014937,0.0002,2]
[319374949,1710707550443,-3689.94250815,0.0002,2]
[319374950,1710707550453,-2314.3588733,0.0002,2]
[319374951,1710707550464,-3539.32258375,0.0002,2]
[319374952,1710707550475,-387.74330011,0.0002,2]
[319374953,1710707550487,-232.64598007,0.0002,2]
[319374954,1710707550498,-155.09732004,0.0002,2]
[319374955,1710707550508,-151.0,0.0002,2]
[319374956,1710707550518,-151.0,0.0002,2]
[319374957,1710707550528,-151.0,0.0002,2]
[319374958,1710707550538,-151.0,0.0002,2]
[319374959,1710707550548,-151.0,0.0002,2]
[319374960,1710707550557,-151.0,0.0002,2]
[319374961,1710707550567,-151.0,0.0002,2]
[319374962,1710707550576,-151.0,0.0002,2]
[319374963,1710707550586,-167.050244,0.0002,2]
[319374964,1710707550596,-400.0,0.0002,2]
[319374965,1710707550606,-3470.660005,0.0002,2]
[319374966,1710707550617,-151.0,0.0002,2]
[319374967,1710707550627,-3470.660005,0.0002,2]
[319374968,1710707550636,-3470.660005,0.0002,2]
[319374969,1710707550646,-151.0,0.0002,2]
[319374970,1710707550655,-3470.660005,0.0002,2]
[319374971,1710707550665,-151.0,0.0002,2]
[319374972,1710707550674,-3470.660005,0.0002,2]
[319374973,1710707550683,-3470.660005,0.0002,2]
[319374974,1710707550692,-151.0,0.0002,2]
[319374975,1710707550702,-3470.660005,0.0002,2]
[319374976,1710707550711,-151.0,0.0002,2]
[319374977,1710707550721,-3470.660005,0.0002,2]
[319374978,1710707550730,-151.0,0.0002,2]
[319374979,1710707550739,-3470.660005,0.0002,2]
[319374980,1710707550748,-188.705867,0.0002,2]
[319374981,1710707550757,-3470.660005,0.0002,2]
[319374982,1710707550766,-3470.660005,0.0002,2]
[319374983,1710707550775,-3470.660005,0.0002,2]
[319374984,1710707550785,-3470.660005,0.0002,2]
[319374985,1710707550794,-3470.660005,0.0002,2]
[319374986,1710707550803,-3470.660005,0.0002,2]
[319374987,1710707550813,-3470.660005,0.0002,2]
[319374988,1710707550823,-3470.660005,0.0002,2]
[319374989,1710707550832,-3470.660005,0.0002,2]
[319374990,1710707550841,-3470.660005,0.0002,2]
[319374991,1710707550850,-3470.66,0.0002,2]
[319374992,1710707550860,-208.04184952,0.00020016,2]
[319374993,1710707550869,-1500.0,0.000201,2]
[319374994,1710707550879,-72016.07705034,0.00020123,2]
[319374995,1710707550888,-304.65313704,0.00020138,2]
[319374996,1710707550899,-161.60434799,0.00020174,2]
[319374997,1710707550909,-150.0,0.00020187,2]
[319374998,1710707550918,-150.0,0.00020215,2]
[319374999,1710707550929,-150.0,0.00020215,2]
[319375000,1710707550938,-150.0,0.00020215,2]
[319375001,1710707550949,-150.0,0.00020215,2]
[319375002,1710707550959,-150.0,0.00020215,2]
[319375003,1710707550972,-59161.91,0.00020222,2]
[319375004,1710707550982,-3000.0,0.0002024,2]
[319375005,1710707550992,-151.68254672,0.00020256,2]
[319375006,1710707551003,-517.841217,0.00020274,2]
[319375007,1710707551013,-152.074053,0.00020276,2]
[319375008,1710707551023,-174.066334,0.00020276,2]
[319375009,1710707551032,-150.0,0.00020286,2]
[319375010,1710707551042,-151.45421478,0.00020342,2]
[319375011,1710707551051,-208.04184952,0.00020361,2]
[319375012,1710707551062,-172.50067,0.00020442,2]
[319375013,1710707551071,-154.5275948,0.00020443,2]
[319375014,1710707551081,-304.65313704,0.00020451,2]
[319375015,1710707551090,-59161.91,0.0002047,2]
[319375016,1710707551100,-169.84,0.000205,2]
[319375017,1710707551112,-183.84,0.00020508,2]
[319375018,1710707551122,-922.44,0.00020513,2]
[319375019,1710707551132,-922.44,0.00020513,2]
[319375020,1710707551142,-921.66,0.00020513,2]
[319375021,1710707551152,-600.0,0.00020536,2]
[319375022,1710707551162,-150.0,0.00020545,2]
[319375023,1710707551172,-150.0,0.00020545,2]
[319375024,1710707551181,-297.16126044,0.00020545,2]
[319375025,1710707551191,-170.15,0.00020548,2]
[319375026,1710707551201,-19717.28,0.00020548,2]
[319375027,1710707551210,-304.65313704,0.00020567,2]
[319375028,1710707551221,-1500.0,0.000206,2]
[319375029,1710707551232,-152.074053,0.00020608,2]
[319375030,1710707551242,-174.066334,0.00020608,2]
[319375031,1710707551252,-174.159505,0.00020637,2]
[319375032,1710707551263,-174.957933,0.00020637,2]
[319375033,1710707551276,-180.371544,0.00020637,2]
[319375034,1710707551289,-175.837736,0.00020637,2]
[319375035,1710707551299,-346.45,0.00020656,2]
[319375036,1710707551310,-150.0,0.00020692,2]
[319375037,1710707551321,-59161.91,0.00020718,2]
[319375038,1710707551333,-564.07,0.00020787,2]
[319375039,1710707551345,-3238.09,0.00020822,2]
[319375040,1710707551357,-900.0,0.000209,7]
[319375041,1710707551372,-172.50067,0.0002094,2]
[319375042,1710707551387,-174.41578,0.00020941,2]
[319375043,1710707551397,-152.074053,0.00020941,2]
[319375044,1710707551414,-174.066334,0.00020941,2]
[319375045,1710707551424,-59161.91,0.00020966,2]
[319375046,1710707551436,-2000.0,0.00020973,2]
[319375047,1710707551447,-623.55282486,0.00021,2]
[319375048,1710707551458,-933.1116759,0.00021,3]
[319375049,1710707551467,-3341.30177889,0.00021,2]
[319375050,1710707551478,-548136.75105016,0.00021,2]
[319375051,1710707551491,-22084.24,0.00021,2]
[319375052,1710707551501,-803.50593564,0.00021,2]
[319375053,1710707551512,-20014.11788014,0.00021,2]
[319375054,1710707551522,-20014.08419268,0.00021,2]
[319375055,1710707551531,-20014.82408939,0.00021,2]
[319375056,1710707551541,-20014.69544507,0.00021,2]
[319375057,1710707551551,-20014.13713243,0.00021,2]
[319375058,1710707551562,-250.05588147,0.00021,2]
[319375059,1710707551572,-1386.0,0.00021,2]
[319375060,1710707551581,-52000.0,0.00021,3]
[319375061,1710707551591,-508071.14484708,0.00021,2]
[319375062,1710707551601,-3000.0,0.00021,2]
[319375063,1710707551613,-3000.0,0.00021,2]
[319375064,1710707551623,-3000.0,0.00021,2]
[319375065,1710707551634,-3000.0,0.00021,2]
[319375066,1710707551645,-3000.0,0.00021,2]
[319375067,1710707551656,-663.32,0.00021,2]
[319375068,1710707551668,-1382.52629212,0.00021,2]
[319375069,1710707551679,-16736.82344096,0.00021,2]
[319375070,1710707551689,-700.0,0.00021,3]
[319375071,1710707551699,-13409.0,0.00021,2]
[319375072,1710707551709,-13401.0,0.00021,2]
[319375073,1710707551718,-10115.0,0.00021,2]
[319375074,1710707551728,-3689.0,0.00021,2]
[319375075,1710707551738,-2313.0,0.00021,2]
[319375076,1710707551748,-3538.0,0.00021,2]
[319375077,1710707551757,-189.16,0.00021023,2]
[319375078,1710707551767,-149058.09480178,0.00021025,5]
[319375079,1710707551784,-32854.94216393,0.00021025,5]
[319375080,1710707551801,-345.89966305,0.00021025,5]
[319375081,1710707551813,-1217.50675063,0.00021025,5]
[319375082,1710707551825,-1522.58277384,0.00021025,5]
[319375083,1710707551838,-425.139,0.00021025,5]
[319375084,1710707551849,-7170.01171002,0.00021025,5]
[319375085,1710707551881,-500.0,0.0001863,2]
[319375086,1710707551893,-108.2513,0.0001863,2]
[319375087,1710707551908,-705.3887,0.0001863,2]
[319375088,1710707551918,-68638.3559,0.00021025,5]
[319375089,1710707551931,-91311.82162885,0.00021025,5]
[319375090,1710707551954,-460.59577668,0.00021025,5]
[319375091,1710707552010,-500.0,0.0001863,2]
[319375092,1710707552019,-851.19206915,0.00021025,5]
[319375093,1710707552031,-455.91728225,0.00021025,5]
[319375094,1710707552044,-1024.30100556,0.00021025,5]
[319375095,1710707552056,-559126.2124762,0.00021025,5]
[319375096,1710707552070,-3323.16474925,0.00021025,5]
[319375097,1710707552083,-3517.9533939,0.00021025,5]
[319375098,1710707552095,-2069.49069972,0.00021025,5]
[319375099,1710707552131,-831.97,0.0001863,2]
[319375100,1710707552141,-12.9000906,0.00021025,5]
[319375101,1710707552153,-3655.5,0.00021025,5]
[319375102,1710707554088,-150.01,0.00016259,2]
[319375103,1710707554097,-1378.92810685,0.00017779,2]
[319375104,1710707554107,-813.86727335,0.0001863,2]
[319375105,1710707554117,-2387.14,0.0001863,2]
[319375106,1710707554127,-500.0,0.0001863,2]
[319375107,1710707554136,-500.0,0.0001863,2]
[319375108,1710707554145,-831.97,0.0001863,2]
[319375109,1710707554154,-2387.14,0.0001863,2]
[319375110,1710707554163,-500.0,0.0001863,2]
[319375111,1710707554172,-500.0,0.0001863,2]
[319375112,1710707554182,-831.97,0.0001863,2]
[319375113,1710707554190,-500.0,0.0001863,2]
[319375114,1710707554200,-247.47147222,0.0001863,2]
[319375115,1710707554209,-831.97,0.0001863,2]
[319375116,1710707554218,-322.97498108,0.0001863,2]
[319375117,1710707554227,-2387.14,0.0001863,2]
[319375118,1710707554237,-831.97,0.0001863,2]
[319375119,1710707554246,-2387.14,0.0001863,2]
[319375120,1710707554256,-831.97,0.0001863,2]
[319375121,1710707554265,-2387.14,0.0001863,2]
[319375122,1710707554274,-831.97,0.0001863,2]
[319375123,1710707554284,-2387.14,0.0001863,2]
[319375124,1710707554294,-2387.14,0.0001863,2]
[319375125,1710707554303,-831.97,0.0001863,2]
[319375126,1710707554312,-2387.14094974,0.0001863,2]
[319375127,1710707554322,-831.97,0.0001863,2]
[319375128,1710707554331,-85758.66806459,0.00021025,5]
[319375129,1710707554340,-394.76,0.00021025,5]
[319375130,1710707554350,-58789.66,0.00021096,2]
[319375131,1710707554359,-517.841217,0.00021096,2]
[319375132,1710707554369,-230.13393708,0.000211,2]
[319375133,1710707554379,-1500.0,0.000211,2]
[319375134,1710707554389,-208.04184952,0.00021146,2]
[319375135,1710707554398,-166.66666667,0.00021147,2]
[319375136,1710707554409,-151.28,0.0002119,2]
[319375137,1710707554419,-150.0,0.0002119,2]
[319375138,1710707554429,-150.0,0.0002119,2]
[319375139,1710707554438,-150.0,0.0002119,2]
[319375140,1710707554448,-150.0,0.00021197,2]
[319375141,1710707554457,-1001.20047544,0.000212,2]
[319375142,1710707554467,-5174.8749205,0.00021207,2]
[319375143,1710707554477,-45731.56435392,0.00021214,2]
[319375144,1710707554671,-1216.99179144,0.00021214,2]
[319375145,1710707554682,-11200.0001,0.00021214,2]
[319375146,1710707554724,-831.97,0.0001863,2]
[319375147,1710707554734,-500.0,0.0001863,2]
[319375148,1710707554743,-1013.35375464,0.00021214,2]
[319375149,1710707554753,-5034.83046237,0.00021222,2]
[319375150,1710707554761,-208.04184952,0.00021264,2]
[319375151,1710707554771,-729.82940844,0.00021265,2]
[319375152,1710707554781,-729.82940843,0.00021265,2]
[319375153,1710707554790,-729.82940843,0.00021265,2]
[319375154,1710707554799,-22941.07634624,0.000213,7]
[319375155,1710707554808,-208.04184952,0.00021302,2]
[319375156,1710707554818,-175.24221204,0.00021313,2]
[319375157,1710707554828,-151.68254672,0.00021318,2]
[319375158,1710707554837,-151.68254672,0.00021345,2]
[319375159,1710707554847,-5251.88,0.0002137,2]
[319375160,1710707554856,-5000.0,0.000214,2]
[319375161,1710707554869,-5000.0,0.000214,3]
[319375162,1710707554878,-5000.0,0.000214,4]
[319375163,1710707554888,-5000.0,0.000214,5]
[319375164,1710707554897,-5000.0,0.000214,6]
[319375165,1710707554907,-5000.0,0.000214,7]
[319375166,1710707554916,-5000.0,0.000214,8]
[319375167,1710707554926,-5000.00000001,0.000214,9]
[319375168,1710707554935,-151.0,0.000214,2]
[319375169,1710707554945,-151.0,0.000214,2]
[319375170,1710707554955,-151.0,0.000214,2]
[319375171,1710707554964,-151.0,0.000214,2]
[319375172,1710707554973,-151.0,0.000214,2]
[319375173,1710707554983,-151.0,0.000214,2]
[319375174,1710707554995,-151.0,0.000214,2]
[319375175,1710707555004,-151.0,0.000214,2]
[319375176,1710707555014,-151.0,0.000214,2]
[319375177,1710707555023,-151.0,0.000214,2]
[319375178,1710707555032,-151.0,0.000214,2]
[319375179,1710707555041,-151.0,0.000214,2]
[319375180,1710707555050,-151.0,0.000214,2]
[319375181,1710707555059,-151.0,0.000214,2]
[319375182,1710707555068,-151.0,0.000214,2]
[319375183,1710707555077,-174.9563,0.000214,2]
[319375184,1710707555086,-151.0,0.000214,2]
[319375185,1710707555095,-151.0,0.000214,2]
[319375186,1710707555104,-151.0,0.000214,2]
[319375187,1710707555113,-151.0,0.000214,2]
[319375188,1710707555123,-151.0,0.000214,2]
[319375189,1710707555132,-151.0,0.000214,2]
[319375190,1710707555142,-151.0,0.000214,2]
[319375191,1710707555151,-151.0,0.000214,2]
[319375192,1710707555160,-151.0,0.000214,2]
[319375193,1710707555170,-151.0,0.000214,2]
[319375194,1710707555180,-151.0,0.000214,2]
[319375195,1710707555189,-264.053736,0.000214,2]
[319375196,1710707555198,-301.702281,0.000214,2]
[319375197,1710707555208,-301.702281,0.000214,2]
[319375198,1710707555218,-301.702281,0.000214,2]
[319375199,1710707555228,-301.702281,0.000214,2]
[319375200,1710707555238,-301.702281,0.000214,2]
[319375201,1710707555248,-301.702281,0.000214,2]
[319375202,1710707555257,-301.702281,0.000214,2]
[319375203,1710707555266,-301.702281,0.000214,2]
[319375204,1710707555276,-301.702281,0.000214,2]
[319375205,1710707555285,-301.702281,0.000214,2]
[319375206,1710707555295,-301.702281,0.000214,2]
[319375207,1710707555304,-301.702281,0.000214,2]
[319375208,1710707555313,-301.702281,0.000214,2]
[319375209,1710707555323,-301.702281,0.000214,2]
[319375210,1710707555332,-301.702281,0.000214,2]
[319375211,1710707555343,-301.702281,0.000214,2]
[319375212,1710707555354,-301.702281,0.000214,2]
[319375213,1710707555366,-301.702281,0.000214,2]
[319375214,1710707555376,-301.702281,0.000214,2]
[319375215,1710707555391,-301.702276,0.000214,2]
[319375216,1710707555400,-151.0,0.000214,2]
[319375217,1710707555410,-151.0,0.000214,2]
[319375218,1710707555419,-151.0,0.000214,2]
[319375219,1710707555430,-246.931573,0.000214,2]
[319375220,1710707555440,-151.0,0.000214,2]
[319375221,1710707555449,-151.0,0.000214,2]
[319375222,1710707555458,-151.0,0.000214,2]
[319375223,1710707555468,-59161.91,0.00021462,2]
[319375224,1710707555478,-2630.0,0.00021463,7]
[319375225,1710707555487,-150.0,0.00021472,2]
[319375226,1710707555497,-832.55,0.00021472,2]
[319375227,1710707555506,-150.0,0.00021472,2]
[319375228,1710707555516,-400.0,0.00021593,2]
[319375229,1710707555525,-165.56873329,0.00021597,2]
[319375230,1710707555535,-241.439776,0.000216,2]
[319375231,1710707555545,-1500.0,0.000216,2]
[319375232,1710707555555,-312.94,0.000216,2]
[319375233,1710707555564,-180.420196,0.00021632,2]
[319375234,1710707555573,-193.917086,0.00021632,2]
[319375235,1710707555583,-199.706704,0.00021632,2]
[319375236,1710707555592,-168.366942,0.00021632,2]
[319375237,1710707555601,-201.129824,0.00021632,2]
[319375238,1710707555610,-181.759996,0.00021632,2]
[319375239,1710707555620,-169.02284,0.00021632,2]
[319375240,1710707555629,-195.064077,0.00021632,2]
[319375241,1710707555639,-153.447727,0.00021632,2]
[319375242,1710707555648,-166.36354,0.00021632,2]
[319375243,1710707555657,-162.334942,0.00021632,2]
[319375244,1710707555666,-158.80219,0.00021632,2]
[319375245,1710707555675,-165.929557,0.00021632,2]
[319375246,1710707555684,-153.255151,0.00021632,2]
[319375247,1710707555694,-186.078777,0.00021632,2]
[319375248,1710707555703,-175.220412,0.00021632,2]
[319375249,1710707555712,-180298.90200293,0.00021654,2]
[319375250,1710707555721,-180.371544,0.00021668,2]
[319375251,1710707555731,-208.04184952,0.00021694,2]
[319375252,1710707555741,-150.0,0.00021702,2]
[319375253,1710707555750,-208.04184952,0.00021716,2]
[319375254,1710707555759,-10000.0,0.00021734,2]
[319375255,1710707555768,-16516.12465468,0.000218,4]
[319375256,1710707555777,-151.0,0.000218,2]
[319375257,1710707555787,-151.0,0.000218,2]
[319375258,1710707555797,-151.0,0.000218,2]
[319375259,1710707555806,-151.081173,0.000218,2]
[319375260,1710707555815,-151.181537,0.000218,2]
[319375261,1710707555824,-151.0,0.000218,2]
[319375262,1710707555834,-151.0,0.000218,2]
[319375263,1710707555843,-151.0,0.000218,2]
[319375264,1710707555852,-151.0,0.000218,2]
[319375265,1710707555861,-151.718146,0.000218,2]
[319375266,1710707555871,-151.0,0.000218,2]
[319375267,1710707555880,-151.0,0.000218,2]
[319375268,1710707555890,-151.0,0.000218,2]
[319375269,1710707555899,-151.0,0.000218,2]
[319375270,1710707555908,-151.0,0.000218,2]
[319375271,1710707555918,-151.0,0.000218,2]
[319375272,1710707555928,-184.838324,0.000218,2]
[319375273,1710707555937,-151.0,0.000218,2]
[319375274,1710707555946,-151.0,0.000218,2]
[319375275,1710707555955,-151.0,0.000218,2]
[319375276,1710707555964,-151.0,0.000218,2]
[319375277,1710707555974,-151.0,0.000218,2]
[319375278,1710707555983,-151.0,0.000218,2]
[319375279,1710707555992,-152.218308,0.000218,2]
[319375280,1710707556002,-151.0,0.000218,2]
[319375281,1710707556011,-151.342715,0.000218,2]
[319375282,1710707556020,-154.844353,0.000218,2]
[319375283,1710707556030,-154.844353,0.000218,2]
[319375284,1710707556039,-154.844353,0.000218,2]
[319375285,1710707556049,-154.844353,0.000218,2]
[319375286,1710707556058,-154.844353,0.000218,2]
[319375287,1710707556068,-154.844353,0.000218,2]
[319375288,1710707556077,-154.844353,0.000218,2]
[319375289,1710707556086,-154.844353,0.000218,2]
[319375290,1710707556095,-154.844353,0.000218,2]
[319375291,1710707556104,-154.844353,0.000218,2]
[319375292,1710707556114,-154.844353,0.000218,2]
[319375293,1710707556123,-154.844353,0.000218,2]
[319375294,1710707556133,-154.844353,0.000218,2]
[319375295,1710707556142,-154.844353,0.000218,2]
[319375296,1710707556152,-154.844353,0.000218,2]
[319375297,1710707556162,-154.844353,0.000218,2]
[319375298,1710707556171,-154.844353,0.000218,2]
[319375299,1710707556181,-154.844353,0.000218,2]
[319375300,1710707556190,-154.844353,0.000218,2]
[319375301,1710707556199,-154.844355,0.000218,2]
[319375302,1710707556209,-151.0,0.000218,2]
[319375303,1710707556218,-151.0,0.000218,2]
[319375304,1710707556227,-216.168263,0.000218,2]
[319375305,1710707556237,-727.156709,0.000218,2]
[319375306,1710707556246,-727.156709,0.000218,2]
[319375307,1710707556255,-727.156709,0.000218,2]
[319375308,1710707556264,-727.156709,0.000218,2]
[319375309,1710707556274,-727.156709,0.000218,2]
[319375310,1710707556283,-727.156709,0.000218,2]
[319375311,1710707556292,-727.156709,0.000218,2]
[319375312,1710707556301,-727.156709,0.000218,2]
[319375313,1710707556310,-727.156709,0.000218,2]
[319375314,1710707556319,-727.156709,0.000218,2]
[319375315,1710707556328,-727.156709,0.000218,2]
[319375316,1710707556337,-727.156709,0.000218,2]
[319375317,1710707556346,-727.156709,0.000218,2]
[319375318,1710707556355,-727.156709,0.000218,2]
[319375319,1710707556365,-727.156709,0.000218,2]
[319375320,1710707556374,-727.156709,0.000218,2]
[319375321,1710707556384,-727.156709,0.000218,2]
[319375322,1710707556393,-727.156709,0.000218,2]